fUST/lending_fUST_20250204
["ID","MTS","AMOUNT","RATE_DAILY","PERIOD"]
[351603725,1738657843392,-762.57,0.00016712,2]
[351603727,1738657843406,-500.0,0.00016846,2]
[351603729,1738657843418,-500.0,0.00016846,2]
[351603731,1738657843427,-691.46,0.00016848,2]
[351603733,1738657843437,-691.46,0.00016848,2]
[351603735,1738657843445,-691.46,0.00016848,2]
[351603737,1738657843455,-618.69,0.00016848,2]
[351603739,1738657843465,-618.69,0.00016848,2]
[351603741,1738657843475,-618.69,0.00016848,2]
[351603743,1738657843483,-618.69,0.00016848,2]
[351603745,1738657843493,-618.69,0.00016848,2]
[351603747,1738657843503,-618.69,0.00016848,2]
[351603749,1738657843511,-618.69,0.00016848,2]
[351603751,1738657843521,-500.0,0.00016849,2]
[351603753,1738657843530,-500.0,0.00016849,2]
[351603755,1738657843539,-500.0,0.00016849,2]
[351603757,1738657843548,-500.0,0.00016849,2]
[351603759,1738657843557,-642.01,0.00016849,2]
[351603760,1738657843566,-628.17,0.00016849,2]
[351603763,1738657843576,-500.0,0.00016849,2]
[351603764,1738657843585,-500.0,0.00016849,2]
[351603767,1738657843595,-528.36,0.00016849,2]
[351603769,1738657843604,-500.0,0.00016849,2]
[351603770,1738657843613,-500.0,0.00016849,2]
[351603772,1738657843622,-1333.73,0.00016849,2]
[351603774,1738657843631,-3308.02,0.00016849,2]
[351603776,1738657843641,-573.89,0.00016849,2]
[351603778,1738657843650,-500.0,0.00016849,2]
[351603780,1738657843660,-500.0,0.00016849,2]
[351603782,1738657843669,-500.0,0.00016849,2]
[351603784,1738657843679,-544.43,0.00016849,2]
[351603787,1738657843688,-500.0,0.00016849,2]
[351603788,1738657843697,-500.0,0.00016849,2]
[351603791,1738657843707,-500.0,0.00016849,2]
[351603793,1738657843717,-1585.63,0.00016849,2]
[351603795,1738657843727,-990.44,0.00016849,2]
[351603796,1738657843736,-602.27,0.00016849,2]
[351603798,1738657843746,-2556.79,0.00016849,2]
[351603801,1738657843756,-959.76,0.00016849,2]
[351603802,1738657843765,-500.0,0.00016849,2]
[351603804,1738657843774,-500.0,0.00016849,2]
[351603806,1738657843783,-566.84,0.00016849,2]
[351603808,1738657843792,-622.95692336,0.00016849,2]
[351603810,1738657843801,-862.82,0.00016849,2]
[351603812,1738657843811,-500.0,0.00016849,2]
[351603814,1738657843820,-7298.83,0.00016849,2]
[351603816,1738657843829,-14689.91,0.00016849,2]
[351603818,1738657843839,-500.0,0.00016849,2]
[351603820,1738657843848,-162.41170645,0.00016849,2]
[351603822,1738657843857,-891.13,0.00016849,2]
[351603824,1738657843866,-500.0,0.00016849,2]
[351603826,1738657843876,-705.99,0.00016849,2]
[351603828,1738657843885,-389.09710198,0.00016849,2]
[351603830,1738657843894,-500.0,0.00016849,2]
[351603832,1738657843903,-500.0,0.00016849,2]
[351603834,1738657843913,-948.85,0.00016849,2]
[351603836,1738657843922,-502.82,0.00016849,2]
[351603838,1738657843932,-500.0,0.00016849,2]
[351603840,1738657843940,-500.0,0.00016849,2]
[351603842,1738657843950,-500.0,0.00016849,2]
[351603844,1738657843960,-500.0,0.00016849,2]
[351603846,1738657843971,-1440.08,0.00016849,2]
[351603848,1738657843981,-500.0,0.00016849,2]
[351603850,1738657843991,-972.33,0.00016849,2]
[351603852,1738657844001,-764.04,0.00016849,2]
[351603853,1738657844011,-918.28,0.00016849,2]
[351603855,1738657844020,-500.0,0.00016849,2]
[351603856,1738657844029,-500.0,0.00016849,2]
[351603858,1738657844038,-668.42,0.00016849,2]
[351603860,1738657844047,-627.9,0.00016849,2]
[351603862,1738657844057,-284.48,0.00016849,2]
[351603864,1738657844066,-1759.95,0.00016849,2]
[351603866,1738657844075,-500.0,0.00016849,2]
[351603868,1738657844084,-500.0,0.00016849,2]
[351603870,1738657844094,-761.72,0.00016849,2]
[351603872,1738657844103,-1074.11,0.00016849,2]
[351603874,1738657844113,-4129.34,0.00016849,2]
[351603876,1738657844122,-810.85,0.00016849,2]
[351603878,1738657844131,-1545.66,0.00016849,2]
[351603880,1738657844140,-2559.25,0.00016849,2]
[351603882,1738657844149,-4364.02,0.00016849,2]
[351603884,1738657844159,-500.0,0.00016849,2]
[351603886,1738657844172,-500.0,0.00016849,2]
[351603887,1738657844181,-1583.77,0.00016849,2]
[351603889,1738657844191,-5645.29,0.00016849,2]
[351603891,1738657844201,-500.0,0.00016849,2]
[351603893,1738657844211,-500.0,0.00016849,2]
[351603895,1738657844223,-762.57,0.00016849,2]
[351603897,1738657844233,-354.1278896,0.00016849,2]
[351603899,1738657844244,-420.0,0.00016879,2]
[351603901,1738657844254,-691.46,0.00016985,2]
[351603903,1738657844263,-691.46,0.00016985,2]
[351603905,1738657844273,-691.46,0.00016985,2]
[351603907,1738657844283,-691.46,0.00016985,2]
[351603909,1738657844292,-691.46,0.00016985,2]
[351603911,1738657844302,-691.66,0.00016985,2]
[351603913,1738657844311,-187.35473188,0.00016985,2]
[351603915,1738657844320,-500.0,0.00016985,2]
[351603917,1738657844330,-500.0,0.00016985,2]
[351603919,1738657844339,-500.0,0.00016985,2]
[351603921,1738657844348,-415.80761267,0.00016985,2]
[351603923,1738657844358,-500.0,0.00016985,2]
[351603925,1738657844367,-500.0,0.00016985,2]
[351603927,1738657844377,-151.0,0.00016986,2]
[351603929,1738657844387,-500.0,0.00016986,2]
[351603931,1738657844397,-500.0,0.00016986,2]
[351603933,1738657844407,-500.0,0.00016986,2]
[351603935,1738657844416,-642.01,0.00016986,2]
[351603937,1738657844425,-628.17,0.00016986,2]
[351603939,1738657844436,-500.0,0.00016986,2]
[351603941,1738657844446,-528.36,0.00016986,2]
[351603943,1738657844456,-500.0,0.00016986,2]
[351603945,1738657844468,-500.0,0.00016986,2]
[351603947,1738657844477,-1333.73,0.00016986,2]
[351603949,1738657844487,-3308.02,0.00016986,2]
[351603951,1738657844496,-573.89,0.00016986,2]
[351603953,1738657844506,-343.67616132,0.00016986,2]
[351603955,1738657844515,-500.0,0.00016986,2]
[351603957,1738657844524,-414.46,0.00016986,2]
[351603959,1738657844533,-544.43,0.00016986,2]
[351603961,1738657844542,-500.0,0.00016986,2]
[351603963,1738657844552,-500.0,0.00016986,2]
[351603965,1738657844561,-500.0,0.00016986,2]
[351603967,1738657844570,-1585.63,0.00016986,2]
[351603969,1738657844579,-990.44,0.00016986,2]
[351603971,1738657844589,-602.27,0.00016986,2]
[351603973,1738657844598,-2556.79,0.00016986,2]
[351603975,1738657844608,-959.76,0.00016986,2]
[351603977,1738657844618,-500.0,0.00016986,2]
[351603979,1738657844628,-500.0,0.00016986,2]
[351603981,1738657844637,-566.84,0.00016986,2]
[351603983,1738657844646,-862.82,0.00016986,2]
[351603985,1738657844655,-500.0,0.00016986,2]
[351603987,1738657844664,-7298.83,0.00016986,2]
[351603989,1738657844674,-14689.91,0.00016986,2]
[351603991,1738657844684,-891.13,0.00016986,2]
[351603993,1738657844694,-500.0,0.00016986,2]
[351603995,1738657844704,-705.99,0.00016986,2]
[351603997,1738657844713,-500.0,0.00016986,2]
[351603999,1738657844728,-500.0,0.00016986,2]
[351604001,1738657844737,-948.85,0.00016986,2]
[351604003,1738657844747,-502.82,0.00016986,2]
[351604005,1738657844756,-500.0,0.00016986,2]
[351604007,1738657844765,-500.0,0.00016986,2]
[351604009,1738657844775,-340.85335333,0.00016986,2]
[351604011,1738657844785,-500.0,0.00016986,2]
[351604013,1738657844794,-1440.08,0.00016986,2]
[351604015,1738657844803,-500.0,0.00016986,2]
[351604016,1738657844813,-972.33,0.00016986,2]
[351604018,1738657844822,-764.04,0.00016986,2]
[351604020,1738657844831,-918.28,0.00016986,2]
[351604022,1738657844841,-500.0,0.00016986,2]
[351604024,1738657844850,-500.0,0.00016986,2]
[351604026,1738657844860,-668.42,0.00016986,2]
[351604029,1738657844870,-627.9,0.00016986,2]
[351604031,1738657844880,-1759.95,0.00016986,2]
[351604033,1738657844890,-500.0,0.00016986,2]
[351604034,1738657844899,-554.724698,0.00016986,2]
[351604036,1738657844908,-761.72,0.00016986,2]
[351604038,1738657844918,-1074.11,0.00016986,2]
[351604040,1738657844927,-4129.34,0.00016986,2]
[351604042,1738657844937,-810.85,0.00016986,2]
[351604044,1738657844946,-1545.66,0.00016986,2]
[351604046,1738657844956,-2559.25,0.00016986,2]
[351604048,1738657844968,-4364.02,0.00016986,2]
[351604050,1738657844977,-167.45859521,0.00016986,2]
[351604052,1738657844986,-500.0,0.00016986,2]
[351604054,1738657844996,-1583.77,0.00016986,2]
[351604056,1738657845006,-5645.29,0.00016986,2]
[351604058,1738657845015,-500.0,0.00016986,2]
[351604060,1738657845025,-500.0,0.00016986,2]
[351604063,1738657845035,-762.57,0.00016986,2]
[351604064,1738657845045,-500.0,0.00016986,2]
[351604066,1738657845055,-537.0,0.00016992,2]
[351604068,1738657845064,-1974.0,0.00016992,2]
[351604082,1738657845185,-2298.0,0.00016992,2]
[351604084,1738657845195,-1000.0,0.00017,17]
[351604086,1738657845205,-153.55854776,0.00017014,2]
[351604088,1738657845218,-1000.0,0.00017021,2]
[351604090,1738657845228,-334.01,0.000171,2]
[351604092,1738657845238,-500.0,0.00017123,2]
[351604094,1738657845248,-223.82304717,0.00017123,2]
[351604096,1738657845258,-500.0,0.00017123,2]
[351604098,1738657845268,-642.01,0.00017123,2]
[351604100,1738657845278,-628.17,0.00017123,2]
[351604102,1738657845288,-500.0,0.00017123,2]
[351604104,1738657845299,-528.36,0.00017123,2]
[351604106,1738657845308,-500.0,0.00017123,2]
[351604108,1738657845318,-500.0,0.00017123,2]
[351604110,1738657845328,-1333.73,0.00017123,2]
[351604112,1738657845338,-3308.02,0.00017123,2]
[351604114,1738657845347,-573.89,0.00017123,2]
[351604116,1738657845356,-500.0,0.00017123,2]
[351604118,1738657845366,-544.43,0.00017123,2]
[351604120,1738657845375,-500.0,0.00017123,2]
[351604122,1738657845385,-500.0,0.00017123,2]
[351604124,1738657845395,-500.0,0.00017123,2]
[351604126,1738657845404,-1585.63,0.00017123,2]
[351604128,1738657845415,-990.44,0.00017123,2]
[351604130,1738657845425,-602.27,0.00017123,2]
[351604132,1738657845434,-2556.79,0.00017123,2]
[351604134,1738657845444,-959.76,0.00017123,2]
[351604135,1738657845454,-500.0,0.00017123,2]
[351604136,1738657845463,-500.0,0.00017123,2]
[351604137,1738657845474,-566.84,0.00017123,2]
[351604138,1738657845483,-862.82,0.00017123,2]
[351604139,1738657845492,-500.0,0.00017123,2]
[351604140,1738657845502,-7298.83,0.00017123,2]
[351604141,1738657845512,-14689.91,0.00017123,2]
[351604142,1738657845522,-891.13,0.00017123,2]
[351604143,1738657845532,-500.0,0.00017123,2]
[351604144,1738657845541,-705.99,0.00017123,2]
[351604145,1738657845550,-500.0,0.00017123,2]
[351604146,1738657845559,-948.85,0.00017123,2]
[351604147,1738657845568,-502.82,0.00017123,2]
[351604148,1738657845577,-500.0,0.00017123,2]
[351604149,1738657845586,-593.9132324,0.00017123,2]
[351604150,1738657845596,-500.0,0.00017123,2]
[351604151,1738657845605,-1440.08,0.00017123,2]
[351604152,1738657845614,-972.33,0.00017123,2]
[351604153,1738657845623,-764.04,0.00017123,2]
[351604154,1738657845633,-918.28,0.00017123,2]
[351604155,1738657845641,-500.0,0.00017123,2]
[351604156,1738657845651,-500.0,0.00017123,2]
[351604157,1738657845660,-668.42,0.00017123,2]
[351604158,1738657845668,-627.9,0.00017123,2]
[351604159,1738657845678,-1759.95,0.00017123,2]
[351604160,1738657845687,-500.0,0.00017123,2]
[351604161,1738657845696,-761.72,0.00017123,2]
[351604162,1738657845706,-1074.11,0.00017123,2]
[351604164,1738657845716,-4129.34,0.00017123,2]
[351604165,1738657845725,-810.85,0.00017123,2]
[351604167,1738657845735,-1545.66,0.00017123,2]
[351604169,1738657845744,-2559.25,0.00017123,2]
[351604171,1738657845754,-4364.02,0.00017123,2]
[351604173,1738657845763,-500.0,0.00017123,2]
[351604175,1738657845772,-1583.77,0.00017123,2]
[351604177,1738657845781,-5645.29,0.00017123,2]
[351604179,1738657845791,-500.0,0.00017123,2]
[351604181,1738657845801,-500.0,0.00017123,2]
[351604183,1738657845810,-762.57,0.00017123,2]
[351604185,1738657845819,-299.022,0.00017195,2]
[351604187,1738657845828,-1200.0,0.00017195,2]
[351604189,1738657845837,-668.153,0.00017195,2]
[351604191,1738657845847,-153.55854776,0.00017233,2]
[351604193,1738657845856,-500.0,0.0001726,2]
[351604195,1738657845865,-500.0,0.0001726,2]
[351604197,1738657845875,-642.01,0.0001726,2]
[351604199,1738657845884,-628.17,0.0001726,2]
[351604201,1738657845894,-500.0,0.0001726,2]
[351604203,1738657845903,-1394.43365856,0.0001726,2]
[351604205,1738657845912,-528.36,0.0001726,2]
[351604207,1738657845921,-500.0,0.0001726,2]
[351604209,1738657845931,-1333.73,0.0001726,2]
[351604211,1738657845941,-3308.02,0.0001726,2]
[351604213,1738657845950,-573.89,0.0001726,2]
[351604215,1738657845960,-500.0,0.0001726,2]
[351604217,1738657845973,-544.43,0.0001726,2]
[351604219,1738657845982,-500.0,0.0001726,2]
[351604221,1738657845992,-500.0,0.0001726,2]
[351604223,1738657846002,-570.88527049,0.0001726,2]
[351604225,1738657846011,-140.08054776,0.0001726,2]
[351604239,1738657846134,-1445.54945224,0.0001726,2]
[351604241,1738657846144,-990.44,0.0001726,2]
[351604243,1738657846154,-602.27,0.0001726,2]
[351604245,1738657846165,-374.16580401,0.0001726,2]
[351604247,1738657846176,-2182.62419599,0.0001726,2]
[351604250,1738657846187,-959.76,0.0001726,2]
[351604252,1738657846196,-500.0,0.0001726,2]
[351604254,1738657846206,-500.0,0.0001726,2]
[351604256,1738657846218,-566.84,0.0001726,2]
[351604258,1738657846227,-862.82,0.0001726,2]
[351604260,1738657846237,-7298.83,0.0001726,2]
[351604262,1738657846247,-2063.41599339,0.0001726,2]
[351604264,1738657846260,-8852.90785563,0.0001726,2]
[351604267,1738657846271,-3773.58615098,0.0001726,2]
[351604269,1738657846280,-891.13,0.0001726,2]
[351604270,1738657846289,-500.0,0.0001726,2]
[351604273,1738657846299,-705.99,0.0001726,2]
[351604275,1738657846308,-500.0,0.0001726,2]
[351604277,1738657846318,-942.73304902,0.0001726,2]
[351604299,1738657846525,-500.0,0.00016438,2]
[351604301,1738657846534,-500.0,0.00016438,2]
[351604303,1738657846544,-500.0,0.00016438,2]
[351604305,1738657846553,-500.0,0.00016575,2]
[351604307,1738657846563,-241.15754561,0.00016575,2]
[351604309,1738657846574,-258.84245439,0.00016575,2]
[351604311,1738657846583,-500.0,0.00016575,2]
[351604313,1738657846592,-436.84,0.00016712,2]
[351604315,1738657846601,-6.11695098,0.0001726,2]
[351604317,1738657846611,-3.81342228,0.0001726,2]
[351604336,1738657846786,-500.0,0.00016438,2]
[351604338,1738657846796,-500.0,0.00016438,2]
[351604340,1738657846805,-500.0,0.00016438,2]
[351604342,1738657846814,-500.0,0.00016575,2]
[351604344,1738657846824,-500.0,0.00016575,2]
[351604346,1738657846833,-499.00657772,0.0001726,2]
[351604348,1738657846842,-500.0,0.0001726,2]
[351604350,1738657846851,-1440.08,0.0001726,2]
[351604352,1738657846861,-972.33,0.0001726,2]
[351604354,1738657846870,-764.04,0.0001726,2]
[351604356,1738657846879,-918.28,0.0001726,2]
[351604358,1738657846888,-500.0,0.0001726,2]
[351604360,1738657846897,-500.0,0.0001726,2]
[351604362,1738657846906,-668.42,0.0001726,2]
[351604364,1738657846915,-584.94339028,0.0001726,2]
[351604366,1738657846932,-276.8603539,0.00015779,2]
[351604368,1738657846941,-42.95660972,0.0001726,2]
[351604370,1738657846951,-178.89303638,0.0001726,2]
[351604373,1738657846962,-1581.05696362,0.0001726,2]
[351604375,1738657846974,-500.0,0.0001726,2]
[351604376,1738657846983,-761.72,0.0001726,2]
[351604378,1738657846992,-1074.11,0.0001726,2]
[351604380,1738657847002,-2297.73366384,0.0001726,2]
[351604869,1738658447872,198.671318,0.00013973,2]
[351604874,1738658811299,2134.98432409,0.00015012,2]
[351604875,1738658819162,421.32357527,0.00015012,2]
[351604929,1738659032911,-300.0,0.00015176,2]
[351604931,1738659032921,-1701.20951571,0.00015177,2]
[351605118,1738659038745,-23198.79048429,0.00015177,2]
[351605120,1738659038755,-4033.0,0.000153,2]
[351605122,1738659038765,-500.0,0.00015342,2]
[351605124,1738659038774,-176.543312,0.00015447,2]
[351605126,1738659038784,-202.92569867,0.00015572,2]
[351605128,1738659038793,-514.5430409,0.00015671,2]
[351605130,1738659038803,-202.92569866,0.00015905,2]
[351605132,1738659038812,-1000.0,0.00016,4]
[351605134,1738659038822,-63883.91726533,0.000163,2]
[351605136,1738659038831,-499.0,0.00016437,2]
[351605138,1738659038841,-414.34723486,0.00016438,2]
[351605140,1738659038850,-229.7479453,0.00016438,2]
[351605142,1738659038859,-495.63186622,0.00016438,2]
[351605144,1738659038869,-553.45754452,0.00016438,2]
[351605146,1738659038878,-500.0,0.00016438,2]
[351605148,1738659038887,-500.0,0.00016438,2]
[351605150,1738659038896,-500.0,0.00016438,2]
[351605152,1738659038905,-500.0,0.00016438,2]
[351605154,1738659038915,-500.0,0.00016438,2]
[351605156,1738659038924,-505.41348552,0.00016438,2]
[351605158,1738659038933,-500.0,0.00016438,2]
[351605160,1738659038943,-500.0,0.00016438,2]
[351605162,1738659038954,-441.5567632,0.00016438,2]
[351605164,1738659038964,-502.26367311,0.00016438,2]
[351605166,1738659038974,-500.0,0.00016438,2]
[351605168,1738659038983,-500.0,0.00016438,2]
[351605170,1738659038992,-500.0,0.00016438,2]
[351605172,1738659039001,-500.0,0.00016438,2]
[351605175,1738659039012,-500.0,0.00016438,2]
[351605176,1738659039021,-500.0,0.00016438,2]
[351605179,1738659039031,-500.0,0.00016438,2]
[351605181,1738659039041,-500.0,0.00016438,2]
[351605183,1738659039051,-500.0,0.00016438,2]
[351605185,1738659039061,-500.0,0.00016438,2]
[351605187,1738659039071,-500.0,0.00016438,2]
[351605189,1738659039081,-500.0,0.00016438,5]
[351605191,1738659039090,-500.0,0.00016438,2]
[351605193,1738659039099,-500.0,0.00016438,2]
[351605195,1738659039108,-354.79306501,0.00016438,2]
[351605197,1738659039118,-506.50061272,0.00016438,2]
[351605199,1738659039127,-501.80219771,0.00016438,2]
[351605201,1738659039136,-345.55891214,0.00016438,2]
[351605203,1738659039145,-500.0,0.00016438,2]
[351605205,1738659039154,-500.0,0.00016438,2]
[351605207,1738659039163,-500.0,0.00016438,2]
[351605209,1738659039173,-506.40964396,0.00016438,2]
[351605211,1738659039182,-504.71568762,0.00016438,2]
[351605213,1738659039192,-508.66649537,0.00016438,2]
[351605215,1738659039203,-500.0,0.00016438,2]
[351605217,1738659039212,-500.0,0.00016438,2]
[351605219,1738659039221,-500.0,0.00016438,2]
[351605221,1738659039230,-500.0,0.00016438,2]
[351605222,1738659039240,-504.44228573,0.00016438,2]
[351605224,1738659039249,-505.92911704,0.00016438,2]
[351605226,1738659039259,-506.42217585,0.00016438,2]
[351605229,1738659039269,-500.0,0.00016438,2]
[351605231,1738659039278,-500.0,0.00016438,2]
[351605233,1738659039288,-500.0,0.00016438,2]
[351605235,1738659039297,-500.0,0.00016438,2]
[351605237,1738659039307,-500.0,0.00016438,2]
[351605239,1738659039316,-500.0,0.00016438,2]
[351605241,1738659039327,-500.0,0.00016438,2]
[351605243,1738659039337,-500.0,0.00016438,2]
[351605245,1738659039347,-500.0,0.00016438,2]
[351605247,1738659039356,-500.0,0.00016438,2]
[351605249,1738659039366,-500.0,0.00016438,2]
[351605251,1738659039376,-500.0,0.00016438,2]
[351605253,1738659039386,-484.27226428,0.00016438,2]
[351605255,1738659039395,-500.72581228,0.00016438,2]
[351605257,1738659039404,-500.0,0.00016438,2]
[351605259,1738659039414,-500.0,0.00016438,2]
[351605261,1738659039423,-3170.18,0.00016438,2]
[351605263,1738659039433,-500.0,0.00016438,2]
[351605265,1738659039443,-500.0,0.00016438,2]
[351605267,1738659039453,-500.0,0.00016438,2]
[351605269,1738659039462,-500.0,0.00016438,2]
[351605271,1738659039472,-500.0,0.00016438,2]
[351605273,1738659039482,-500.0,0.00016438,2]
[351605275,1738659039491,-390.85512548,0.00016438,2]
[351605277,1738659039501,-500.0,0.00016438,2]
[351605279,1738659039510,-168.00597332,0.00016438,2]
[351605281,1738659039520,-500.0,0.00016438,2]
[351605283,1738659039529,-500.0,0.00016438,2]
[351605285,1738659039538,-500.0,0.00016438,2]
[351605287,1738659039547,-500.0,0.00016438,2]
[351605289,1738659039557,-500.0,0.00016438,2]
[351605291,1738659039572,-500.0,0.00016438,2]
[351605293,1738659039582,-520.14506571,0.00016438,2]
[351605296,1738659039591,-500.0,0.00016438,2]
[351605298,1738659039600,-541.72756121,0.00016438,2]
[351605299,1738659039611,-500.0,0.00016438,2]
[351605302,1738659039620,-500.0,0.00016438,2]
[351605304,1738659039630,-500.0,0.00016438,2]
[351605306,1738659039640,-500.0,0.00016438,2]
[351605308,1738659039650,-500.0,0.00016438,2]
[351605310,1738659039659,-500.0,0.00016438,2]
[351605311,1738659039670,-500.0,0.00016438,2]
[351605314,1738659039680,-500.0,0.00016438,2]
[351605316,1738659039689,-762.41,0.00016438,2]
[351605317,1738659039699,-500.0,0.00016438,2]
[351605320,1738659039709,-500.0,0.00016438,2]
[351605322,1738659039719,-500.0,0.00016438,2]
[351605324,1738659039729,-500.0,0.00016438,2]
[351605326,1738659039739,-698.57,0.00016438,2]
[351605328,1738659039749,-500.0,0.00016438,2]
[351605330,1738659039759,-500.0,0.00016438,2]
[351605332,1738659039769,-500.0,0.00016438,2]
[351605334,1738659039778,-500.0,0.00016438,2]
[351605336,1738659039787,-500.0,0.00016438,2]
[351605338,1738659039797,-500.0,0.00016438,2]
[351605340,1738659039806,-500.0,0.00016438,2]
[351605342,1738659039816,-500.0,0.00016438,2]
[351605344,1738659039825,-500.0,0.00016438,2]
[351605346,1738659039835,-500.0,0.00016438,2]
[351605347,1738659039844,-500.0,0.00016438,2]
[351605350,1738659039854,-500.0,0.00016438,2]
[351605352,1738659039864,-500.0,0.00016438,2]
[351605354,1738659039875,-500.0,0.00016438,2]
[351605356,1738659039885,-500.0,0.00016438,2]
[351605358,1738659039895,-500.0,0.00016438,2]
[351605360,1738659039904,-500.0,0.00016438,2]
[351605362,1738659039914,-500.0,0.00016438,2]
[351605364,1738659039924,-500.0,0.00016438,2]
[351605366,1738659039934,-500.0,0.00016438,2]
[351605368,1738659039943,-622.11,0.00016438,2]
[351605370,1738659039955,-500.0,0.00016438,2]
[351605372,1738659039964,-500.0,0.00016438,2]
[351605374,1738659039974,-500.0,0.00016438,2]
[351605376,1738659039983,-500.0,0.00016438,2]
[351605378,1738659039994,-500.0,0.00016438,2]
[351605380,1738659040004,-500.0,0.00016438,2]
[351605382,1738659040014,-500.0,0.00016438,2]
[351605384,1738659040023,-500.0,0.00016438,2]
[351605386,1738659040033,-500.0,0.00016438,2]
[351605388,1738659040042,-500.0,0.00016438,2]
[351605390,1738659040052,-500.0,0.00016438,2]
[351605392,1738659040061,-509.10665467,0.00016438,2]
[351605394,1738659040071,-511.98004901,0.00016438,2]
[351605396,1738659040080,-1524.56,0.00016438,2]
[351605398,1738659040090,-500.0,0.00016438,2]
[351605400,1738659040100,-500.0,0.00016438,2]
[351605403,1738659040109,-533.62805799,0.00016438,2]
[351605405,1738659040118,-507.52446146,0.00016438,2]
[351605408,1738659040128,-500.0,0.00016438,2]
[351605411,1738659040137,-500.0,0.00016438,2]
[351605414,1738659040146,-500.0,0.00016438,2]
[351605417,1738659040155,-639.57,0.00016438,2]
[351605419,1738659040165,-500.0,0.00016438,2]
[351605422,1738659040174,-500.0,0.00016438,2]
[351605425,1738659040183,-500.0,0.00016438,2]
[351605428,1738659040193,-500.0,0.00016438,2]
[351605431,1738659040205,-500.0,0.00016438,2]
[351605433,1738659040214,-502.83508631,0.00016438,2]
[351605435,1738659040224,-500.0,0.00016438,2]
[351605437,1738659040233,-501.71078274,0.00016438,2]
[351605439,1738659040243,-500.0,0.00016438,2]
[351605441,1738659040253,-500.0,0.00016438,2]
[351605443,1738659040263,-500.0,0.00016438,2]
[351605445,1738659040272,-500.0,0.00016438,2]
[351605448,1738659040282,-500.0,0.00016438,2]
[351605450,1738659040292,-593.76,0.00016438,2]
[351605452,1738659040301,-473.93188131,0.00016438,2]
[351605454,1738659040311,-4182.19,0.00016438,2]
[351605456,1738659040320,-500.0,0.00016438,2]
[351605458,1738659040329,-500.0,0.00016438,2]
[351605460,1738659040339,-500.0,0.00016438,2]
[351605462,1738659040348,-426.54006714,0.00016438,2]
[351605464,1738659040357,-500.0,0.00016438,2]
[351605466,1738659040367,-500.0,0.00016438,2]
[351605468,1738659040377,-500.0,0.00016438,2]
[351605470,1738659040386,-500.0,0.00016438,2]
[351605472,1738659040396,-13920.18,0.00016438,2]
[351605474,1738659040405,-500.0,0.00016438,2]
[351605476,1738659040415,-500.0,0.00016438,2]
[351605478,1738659040424,-730.8,0.00016438,2]
[351605480,1738659040434,-500.0,0.00016438,2]
[351605482,1738659040443,-500.0,0.00016438,2]
[351605484,1738659040455,-1621.29,0.00016438,2]
[351605486,1738659040464,-500.0,0.00016438,2]
[351605488,1738659040474,-500.0,0.00016438,2]
[351605490,1738659040484,-816.87,0.00016438,2]